[Event "Late-Titled-Tuesday-Blitz-February-06-2024"]
[Site "Chess.com"]
[Date "2024.02.06"]
[Round "3"]
[White "Marcan2b"]
[Black "bilelou"]
[Result "1/2-1/2"]
[WhiteElo "3000"]
[BlackElo "2746"]
[TimeControl "180+1"]
[EndTime "14:29:32 PST"]
[Termination "Game drawn by repetition"]

1. Nf3 {[%clk 0:03:00.9]} 1... Nf6 {[%clk 0:02:57.9]} 2. g3 {[%clk 0:03:00.8]}
2... d5 {[%clk 0:02:50.2]} 3. Bg2 {[%clk 0:03:00.4]} 3... e6 {[%clk 0:02:50.5]}
4. O-O {[%clk 0:02:59.5]} 4... Be7 {[%clk 0:02:51.1]} 5. c4 {[%clk 0:03:00.1]}
5... O-O {[%clk 0:02:46.4]} 6. b3 {[%clk 0:03:00.7]} 6... d4 {[%clk 0:02:45.9]}
7. e3 {[%clk 0:02:59.9]} 7... Nc6 {[%clk 0:02:46.1]} 8. exd4 {[%clk 0:02:57.9]}
8... Nxd4 {[%clk 0:02:43.3]} 9. Bb2 {[%clk 0:02:57.9]} 9... Bc5 {[%clk
0:02:43.5]} 10. d3 {[%clk 0:02:54]} 10... Nxf3+ {[%clk 0:02:43.3]} 11. Bxf3
{[%clk 0:02:53.7]} 11... Bd4 {[%clk 0:02:43.8]} 12. Nc3 {[%clk 0:02:52.1]} 12...
c6 {[%clk 0:02:43.4]} 13. Re1 {[%clk 0:02:50.5]} 13... e5 {[%clk 0:02:43.9]} 14.
Qc2 {[%clk 0:02:50.4]} 14... Bf5 {[%clk 0:02:43.2]} 15. Rad1 {[%clk 0:02:50.1]}
15... Re8 {[%clk 0:02:38.9]} 16. Ne2 {[%clk 0:02:39.6]} 16... Bxb2 {[%clk
0:02:38.6]} 17. Qxb2 {[%clk 0:02:40.5]} 17... Qc7 {[%clk 0:02:29.9]} 18. d4
{[%clk 0:02:37.6]} 18... exd4 {[%clk 0:02:22.7]} 19. Nxd4 {[%clk 0:02:36.7]}
19... Bg6 {[%clk 0:02:21.6]} 20. Kg2 {[%clk 0:02:28.8]} 20... h6 {[%clk
0:02:18.5]} 21. b4 {[%clk 0:02:27.2]} 21... Rxe1 {[%clk 0:02:16.2]} 22. Rxe1
{[%clk 0:02:26.9]} 22... Rd8 {[%clk 0:02:16.7]} 23. Nb3 {[%clk 0:02:21.2]} 23...
Bd3 {[%clk 0:02:11.5]} 24. Qc3 {[%clk 0:02:20.4]} 24... Bf5 {[%clk 0:02:08.1]}
25. Qe5 {[%clk 0:02:16.5]} 25... Qc8 {[%clk 0:01:54.7]} 26. Kg1 {[%clk
0:02:11.7]} 26... Re8 {[%clk 0:01:50]} 27. Qa1 {[%clk 0:02:11.5]} 27... Be4
{[%clk 0:01:48.9]} 28. Bxe4 {[%clk 0:02:09.2]} 28... Nxe4 {[%clk 0:01:46.8]} 29.
h4 {[%clk 0:02:04.1]} 29... b6 {[%clk 0:01:22]} 30. Qd4 {[%clk 0:02:01.8]} 30...
Nf6 {[%clk 0:01:16.4]} 31. Rxe8+ {[%clk 0:01:54]} 31... Qxe8 {[%clk 0:01:17.3]}
32. Nd2 {[%clk 0:01:47.1]} 32... Qe7 {[%clk 0:01:13.8]} 33. a3 {[%clk
0:01:45.2]} 33... Kf8 {[%clk 0:01:06.4]} 34. Kg2 {[%clk 0:01:44.4]} 34... Ke8
{[%clk 0:01:06.2]} 35. Nf3 {[%clk 0:01:43.1]} 35... Qe4 {[%clk 0:01:03.8]} 36.
Qc3 {[%clk 0:01:28.7]} 36... Kf8 {[%clk 0:00:49.6]} 37. Kg1 {[%clk 0:01:25.2]}
37... Ng4 {[%clk 0:00:45.6]} 38. Qd4 {[%clk 0:01:24.1]} 38... Qxd4 {[%clk
0:00:44.5]} 39. Nxd4 {[%clk 0:01:23.9]} 39... Ne5 {[%clk 0:00:45.1]} 40. c5
{[%clk 0:01:19.1]} 40... bxc5 {[%clk 0:00:44.6]} 41. bxc5 {[%clk 0:01:20]} 41...
a6 {[%clk 0:00:40]} 42. f4 {[%clk 0:01:15.5]} 42... Nd3 {[%clk 0:00:39.4]} 43.
Nxc6 {[%clk 0:01:16.2]} 43... Nxc5 {[%clk 0:00:39.3]} 44. Kf2 {[%clk 0:01:16.5]}
44... Ke8 {[%clk 0:00:39.6]} 45. Ke3 {[%clk 0:01:15.9]} 45... Kd7 {[%clk
0:00:40.1]} 46. Ne5+ {[%clk 0:01:16.5]} 46... Ke6 {[%clk 0:00:40.5]} 47. Kd4
{[%clk 0:01:16.1]} 47... Nb7 {[%clk 0:00:35.8]} 48. Nd3 {[%clk 0:01:14]} 48...
Kd6 {[%clk 0:00:33.6]} 49. Nb4 {[%clk 0:01:10.7]} 49... a5 {[%clk 0:00:32.4]}
50. Nd3 {[%clk 0:01:10.8]} 50... Nd8 {[%clk 0:00:31.9]} 51. Kc4 {[%clk
0:01:09.4]} 51... Kc6 {[%clk 0:00:31.7]} 52. Ne5+ {[%clk 0:01:09.2]} 52... Kb6
{[%clk 0:00:31.9]} 53. Kd5 {[%clk 0:01:09.4]} 53... Kb5 {[%clk 0:00:32]} 54. Kd6
{[%clk 0:01:06.2]} 54... f6 {[%clk 0:00:29.5]} 55. Nd3 {[%clk 0:00:50.7]} 55...
Ka4 {[%clk 0:00:29.6]} 56. Ke7 {[%clk 0:00:50.9]} 56... Nc6+ {[%clk 0:00:29.2]}
57. Kf7 {[%clk 0:00:51.4]} 57... Kxa3 {[%clk 0:00:20.8]} 58. Kxg7 {[%clk
0:00:51.8]} 58... Kb3 {[%clk 0:00:20.1]} 59. Kxh6 {[%clk 0:00:51.7]} 59... Kc3
{[%clk 0:00:18.7]} 60. Nc5 {[%clk 0:00:49.6]} 60... Kb4 {[%clk 0:00:18.8]} 61.
Nd3+ {[%clk 0:00:48.5]} 61... Kc3 {[%clk 0:00:18.9]} 62. Nc5 {[%clk 0:00:41.7]}
62... Kb4 {[%clk 0:00:19.2]} 63. Nd3+ {[%clk 0:00:40.7]} 63... Kc3 {[%clk
0:00:19.3]} 1/2-1/2

[Event "Late-Titled-Tuesday-Blitz-February-06-2024"]
[Site "Chess.com"]
[Date "2024.02.06"]
[Round "3"]
[White "Boninknights"]
[Black "neri_gaite"]
[Result "1-0"]
[WhiteElo "2349"]
[BlackElo "2024"]
[TimeControl "180+1"]
[EndTime "14:29:32 PST"]
[Termination "Boninknights won by resignation"]

1. d4 {[%clk 0:02:59.6]} 1... d5 {[%clk 0:02:59.3]} 2. Nf3 {[%clk 0:02:57.2]}
2... Nf6 {[%clk 0:02:59.4]} 3. c4 {[%clk 0:02:54.8]} 3... e6 {[%clk 0:02:59.1]}
4. Nc3 {[%clk 0:02:53.5]} 4... Be7 {[%clk 0:02:59.2]} 5. Bg5 {[%clk 0:02:52.2]}
5... O-O {[%clk 0:02:59]} 6. e3 {[%clk 0:02:52]} 6... h6 {[%clk 0:02:58.6]} 7.
Bh4 {[%clk 0:02:51]} 7... b6 {[%clk 0:02:58]} 8. Rc1 {[%clk 0:02:49.2]} 8... Bb7
{[%clk 0:02:56.7]} 9. Bxf6 {[%clk 0:02:47.9]} 9... Bxf6 {[%clk 0:02:56.6]} 10.
cxd5 {[%clk 0:02:47.4]} 10... exd5 {[%clk 0:02:57.5]} 11. b4 {[%clk 0:02:47.1]}
11... Nc6 {[%clk 0:02:53.3]} 12. b5 {[%clk 0:02:44.1]} 12... Ne7 {[%clk
0:02:51.4]} 13. Be2 {[%clk 0:02:42.7]} 13... Rc8 {[%clk 0:02:41.3]} 14. O-O
{[%clk 0:02:40]} 14... c6 {[%clk 0:02:38.9]} 15. bxc6 {[%clk 0:02:38.3]} 15...
Nxc6 {[%clk 0:02:28.3]} 16. Qa4 {[%clk 0:02:30.3]} 16... Na5 {[%clk 0:02:23]}
17. Rfd1 {[%clk 0:02:25.3]} 17... Nc4 {[%clk 0:02:18.4]} 18. Bxc4 {[%clk
0:02:07.8]} 18... Rxc4 {[%clk 0:02:16.8]} 19. Qxa7 {[%clk 0:02:05.4]} 19... Qc7
{[%clk 0:02:16.9]} 20. Qa3 {[%clk 0:01:50.3]} 20... Ra8 {[%clk 0:02:09.4]} 21.
Qb2 {[%clk 0:01:46.5]} 21... Be7 {[%clk 0:01:53.9]} 22. Ne5 {[%clk 0:01:40]}
22... Ba3 {[%clk 0:01:49.2]} 23. Qb3 {[%clk 0:01:14.7]} 23... Bxc1 {[%clk
0:01:44.5]} 24. Rxc1 {[%clk 0:01:13.1]} 24... Rc8 {[%clk 0:01:24.8]} 25. Nxc4
{[%clk 0:01:08.6]} 25... dxc4 {[%clk 0:01:24.1]} 26. Qb5 {[%clk 0:01:05.4]}
26... Ra8 {[%clk 0:01:13.6]} 27. h3 {[%clk 0:00:58.5]} 27... Ra5 {[%clk
0:01:08.2]} 28. Qb4 {[%clk 0:00:55.6]} 28... Rg5 {[%clk 0:01:07.4]} 29. d5
{[%clk 0:00:41.4]} 29... Bxd5 {[%clk 0:00:55.6]} 30. Nxd5 {[%clk 0:00:38.5]}
30... Rxd5 {[%clk 0:00:56.3]} 31. g3 {[%clk 0:00:28.9]} 31... Rc5 {[%clk
0:00:47.9]} 32. Rc3 {[%clk 0:00:27]} 32... Qc6 {[%clk 0:00:34.5]} 33. a4 {[%clk
0:00:25.6]} 33... Qe6 {[%clk 0:00:22]} 34. a5 {[%clk 0:00:21.7]} 34... Rxa5
{[%clk 0:00:16.7]} 35. Qxc4 {[%clk 0:00:21.4]} 35... Qxh3 {[%clk 0:00:12.7]} 36.
Qc8+ {[%clk 0:00:19.4]} 36... Kh7 {[%clk 0:00:12.3]} 37. Qxh3 {[%clk 0:00:18]}
37... Ra1+ {[%clk 0:00:11.5]} 38. Kg2 {[%clk 0:00:16.7]} 38... g6 {[%clk
0:00:12.4]} 39. Qd7 {[%clk 0:00:14.5]} 39... Kg7 {[%clk 0:00:12.4]} 40. Rc7
{[%clk 0:00:14.2]} 1-0

[Event "Late-Titled-Tuesday-Blitz-February-06-2024"]
[Site "Chess.com"]
[Date "2024.02.06"]
[Round "3"]
[White "steepedgames"]
[Black "Reality-Stone"]
[Result "0-1"]
[WhiteElo "2434"]
[BlackElo "2628"]
[TimeControl "180+1"]
[EndTime "14:29:34 PST"]
[Termination "Reality-Stone won by resignation"]

1. d4 {[%clk 0:02:55.1]} 1... e6 {[%clk 0:02:54.2]} 2. e4 {[%clk 0:02:53.9]}
2... d5 {[%clk 0:02:52]} 3. Nc3 {[%clk 0:02:53.1]} 3... Nf6 {[%clk 0:02:52.3]}
4. Bg5 {[%clk 0:02:50.9]} 4... dxe4 {[%clk 0:02:51.6]} 5. Nxe4 {[%clk
0:02:50.6]} 5... Nbd7 {[%clk 0:02:49.3]} 6. Bd3 {[%clk 0:02:47.8]} 6... Be7
{[%clk 0:02:44.6]} 7. Ng3 {[%clk 0:02:47.2]} 7... b6 {[%clk 0:02:42.6]} 8. Nf3
{[%clk 0:02:46]} 8... Bb7 {[%clk 0:02:42.1]} 9. O-O {[%clk 0:02:45.9]} 9... h6
{[%clk 0:02:41]} 10. Bd2 {[%clk 0:02:41.1]} 10... O-O {[%clk 0:02:34.6]} 11. Qe2
{[%clk 0:02:40.4]} 11... c5 {[%clk 0:02:31.2]} 12. c3 {[%clk 0:02:31.8]} 12...
Rc8 {[%clk 0:02:29.2]} 13. a4 {[%clk 0:02:30.2]} 13... cxd4 {[%clk 0:02:27.3]}
14. cxd4 {[%clk 0:02:27.1]} 14... Nd5 {[%clk 0:02:17]} 15. a5 {[%clk 0:02:25.1]}
15... N7f6 {[%clk 0:02:15]} 16. axb6 {[%clk 0:02:10.6]} 16... Qxb6 {[%clk
0:02:10.6]} 17. Ba5 {[%clk 0:02:04.9]} 17... Qb3 {[%clk 0:02:05.1]} 18. Nd2
{[%clk 0:01:26]} 18... Qxb2 {[%clk 0:01:55.4]} 19. Rab1 {[%clk 0:01:24.7]} 19...
Qxd4 {[%clk 0:01:43.4]} 20. Nf3 {[%clk 0:01:08.8]} 20... Qc5 {[%clk 0:01:17.2]}
21. Rxb7 {[%clk 0:01:03.9]} 21... Qxa5 {[%clk 0:01:15.4]} 22. Ne4 {[%clk
0:00:51.7]} 22... Nf4 {[%clk 0:01:06.9]} 23. Qe3 {[%clk 0:00:49.8]} 23... Nxd3
{[%clk 0:01:04.9]} 24. Qxd3 {[%clk 0:00:42]} 24... Nxe4 {[%clk 0:01:04.5]} 25.
Rxe7 {[%clk 0:00:39.2]} 25... Nf6 {[%clk 0:00:59.9]} 26. h3 {[%clk 0:00:37.2]}
26... Rfd8 {[%clk 0:00:59.2]} 27. Qe3 {[%clk 0:00:37.5]} 27... Rc7 {[%clk
0:00:57.4]} 28. Rxc7 {[%clk 0:00:33.3]} 28... Qxc7 {[%clk 0:00:58.3]} 29. Ra1
{[%clk 0:00:33.5]} 29... a5 {[%clk 0:00:57]} 30. Qa3 {[%clk 0:00:26.4]} 30...
Ra8 {[%clk 0:00:56]} 31. Nd4 {[%clk 0:00:25.6]} 31... a4 {[%clk 0:00:55.3]} 32.
Nb5 {[%clk 0:00:25.8]} 32... Qc4 {[%clk 0:00:50.9]} 33. Nc3 {[%clk 0:00:24.1]}
33... Nd5 {[%clk 0:00:44.8]} 34. Nxd5 {[%clk 0:00:23.9]} 34... exd5 {[%clk
0:00:38]} 35. Rc1 {[%clk 0:00:24.3]} 35... Qb3 {[%clk 0:00:36.8]} 36. Qd6 {[%clk
0:00:18.2]} 36... a3 {[%clk 0:00:35.6]} 37. Qc6 {[%clk 0:00:18.6]} 37... Rb8
{[%clk 0:00:29.3]} 38. Re1 {[%clk 0:00:12.3]} 38... a2 {[%clk 0:00:26.9]} 39.
Kh2 {[%clk 0:00:11.6]} 39... Qb2 {[%clk 0:00:13.7]} 40. Re8+ {[%clk 0:00:09.5]}
40... Rxe8 {[%clk 0:00:13.9]} 41. Qxe8+ {[%clk 0:00:10.4]} 41... Kh7 {[%clk
0:00:14.2]} 42. Qxf7 {[%clk 0:00:11.3]} 42... a1=Q {[%clk 0:00:13.3]} 43. Qf5+
{[%clk 0:00:11.1]} 43... g6 {[%clk 0:00:13.9]} 44. Qf7+ {[%clk 0:00:10.2]} 44...
Qg7 {[%clk 0:00:14.4]} 45. Qxd5 {[%clk 0:00:10.2]} 45... Qae5+ {[%clk
0:00:14.8]} 0-1

[Event "Late-Titled-Tuesday-Blitz-February-06-2024"]
[Site "Chess.com"]
[Date "2024.02.06"]
[Round "3"]
[White "ilya2700"]
[Black "TanitoluwaAps116"]
[Result "0-1"]
[WhiteElo "2343"]
[BlackElo "2826"]
[TimeControl "180+1"]
[EndTime "14:29:36 PST"]
[Termination "TanitoluwaAps116 won on time"]

1. d4 {[%clk 0:02:59.3]} 1... Nf6 {[%clk 0:02:57.4]} 2. c4 {[%clk 0:02:59.6]}
2... e6 {[%clk 0:02:57.5]} 3. Nf3 {[%clk 0:02:59.8]} 3... b6 {[%clk 0:02:57.3]}
4. g3 {[%clk 0:03:00]} 4... Ba6 {[%clk 0:02:56.9]} 5. b3 {[%clk 0:03:00.5]} 5...
Bb4+ {[%clk 0:02:56.3]} 6. Bd2 {[%clk 0:03:00.9]} 6... Be7 {[%clk 0:02:56.2]} 7.
Bg2 {[%clk 0:03:00.9]} 7... c6 {[%clk 0:02:56.7]} 8. Bc3 {[%clk 0:02:58.5]} 8...
d5 {[%clk 0:02:57]} 9. Ne5 {[%clk 0:02:54.3]} 9... Nfd7 {[%clk 0:02:56.8]} 10.
Nxd7 {[%clk 0:02:54.1]} 10... Nxd7 {[%clk 0:02:56.7]} 11. Nd2 {[%clk 0:02:54.1]}
11... O-O {[%clk 0:02:54.2]} 12. O-O {[%clk 0:02:53.9]} 12... f5 {[%clk
0:02:53.7]} 13. f3 {[%clk 0:02:36.5]} 13... Bf6 {[%clk 0:01:41]} 14. e4 {[%clk
0:02:29.5]} 14... c5 {[%clk 0:01:37]} 15. exd5 {[%clk 0:01:56.6]} 15... cxd4
{[%clk 0:01:28.8]} 16. Bb4 {[%clk 0:01:54.8]} 16... e5 {[%clk 0:01:18.8]} 17.
Bxf8 {[%clk 0:01:50.2]} 17... Qxf8 {[%clk 0:01:19.7]} 18. Qc2 {[%clk 0:01:42.3]}
18... g6 {[%clk 0:01:14.5]} 19. Rae1 {[%clk 0:01:39.4]} 19... Rc8 {[%clk
0:01:12.8]} 20. Qd3 {[%clk 0:01:22]} 20... Qa3 {[%clk 0:00:58.2]} 21. g4 {[%clk
0:01:13.1]} 21... Nc5 {[%clk 0:00:54.7]} 22. Qb1 {[%clk 0:01:08]} 22... Qb4
{[%clk 0:00:48.7]} 23. Rd1 {[%clk 0:00:37.7]} 23... Bg5 {[%clk 0:00:44.5]} 24.
gxf5 {[%clk 0:00:32.6]} 24... Bxd2 {[%clk 0:00:41.6]} 25. fxg6 {[%clk
0:00:32.9]} 25... d3 {[%clk 0:00:32.5]} 26. gxh7+ {[%clk 0:00:32]} 26... Kh8
{[%clk 0:00:30.8]} 27. Qa1 {[%clk 0:00:21.8]} 27... Bf4 {[%clk 0:00:23.3]} 28.
Rfe1 {[%clk 0:00:16.9]} 28... Re8 {[%clk 0:00:20.9]} 29. Bh3 {[%clk 0:00:10.5]}
29... d2 {[%clk 0:00:15.3]} 30. Re2 {[%clk 0:00:08.8]} 30... Nd3 {[%clk
0:00:12.7]} 31. Be6 {[%clk 0:00:04.5]} 31... Qc5+ {[%clk 0:00:10]} 32. Kg2
{[%clk 0:00:03]} 32... Bc8 {[%clk 0:00:08.5]} 33. Qb1 {[%clk 0:00:02.8]} 33...
Bxe6 {[%clk 0:00:07.3]} 34. Qxd3 {[%clk 0:00:02.5]} 34... Bf7 {[%clk 0:00:05.3]}
35. Qf5 {[%clk 0:00:02.7]} 35... Rf8 {[%clk 0:00:05.3]} 36. Rxe5 {[%clk
0:00:01.4]} 36... Bxe5 {[%clk 0:00:05.9]} 37. Qxe5+ {[%clk 0:00:02.3]} 37...
Kxh7 {[%clk 0:00:06.5]} 38. Qh5+ {[%clk 0:00:02.7]} 38... Bxh5 {[%clk
0:00:06.6]} 0-1

[Event "Late-Titled-Tuesday-Blitz-February-06-2024"]
[Site "Chess.com"]
[Date "2024.02.06"]
[Round "3"]
[White "OneTrickPony_82"]
[Black "trriinu"]
[Result "1-0"]
[WhiteElo "2541"]
[BlackElo "2197"]
[TimeControl "180+1"]
[EndTime "14:29:39 PST"]
[Termination "OneTrickPony_82 won by resignation"]

1. d4 {[%clk 0:03:00.9]} 1... d5 {[%clk 0:02:58.3]} 2. c4 {[%clk 0:03:00.8]}
2... e5 {[%clk 0:02:58.6]} 3. dxe5 {[%clk 0:02:59.8]} 3... d4 {[%clk 0:02:59.5]}
4. Nf3 {[%clk 0:03:00.1]} 4... Nc6 {[%clk 0:02:59.9]} 5. a3 {[%clk 0:02:57.5]}
5... Nge7 {[%clk 0:03:00.5]} 6. b4 {[%clk 0:02:53.9]} 6... Ng6 {[%clk
0:03:00.4]} 7. Bb2 {[%clk 0:02:54.4]} 7... a5 {[%clk 0:03:00.2]} 8. b5 {[%clk
0:02:51]} 8... Ncxe5 {[%clk 0:03:00.1]} 9. Nxe5 {[%clk 0:02:40.4]} 9... Nxe5
{[%clk 0:03:01]} 10. Qxd4 {[%clk 0:02:35.6]} 10... Qxd4 {[%clk 0:02:54.9]} 11.
Bxd4 {[%clk 0:02:36]} 11... Nxc4 {[%clk 0:02:55.3]} 12. e3 {[%clk 0:02:32]}
12... Be6 {[%clk 0:02:54.7]} 13. Be2 {[%clk 0:02:14.2]} 13... f6 {[%clk
0:02:32.7]} 14. O-O {[%clk 0:02:13.5]} 14... Be7 {[%clk 0:02:27.9]} 15. Rc1
{[%clk 0:02:13.1]} 15... Nd6 {[%clk 0:02:09.1]} 16. Rxc7 {[%clk 0:02:10.9]}
16... Bd8 {[%clk 0:01:48.6]} 17. Rc1 {[%clk 0:01:53.1]} 17... a4 {[%clk
0:01:40.6]} 18. Nd2 {[%clk 0:01:52.5]} 18... O-O {[%clk 0:01:29.8]} 19. Bc5
{[%clk 0:01:48.5]} 19... Be7 {[%clk 0:01:24.5]} 20. Bf3 {[%clk 0:01:27.2]} 20...
Rab8 {[%clk 0:01:16.1]} 21. Ne4 {[%clk 0:01:19.9]} 21... Rfd8 {[%clk 0:00:49]}
22. Bb6 {[%clk 0:01:15.7]} 22... Rdc8 {[%clk 0:00:36]} 23. Bc7 {[%clk
0:01:06.8]} 23... Rxc7 {[%clk 0:00:13.2]} 24. Rxc7 {[%clk 0:01:05.2]} 24... Bd8
{[%clk 0:00:11.1]} 25. Rcc1 {[%clk 0:00:58.4]} 25... Nxb5 {[%clk 0:00:11.1]} 26.
Nc5 {[%clk 0:00:50.3]} 26... Bf7 {[%clk 0:00:10.2]} 27. Nd7 {[%clk 0:00:41.7]}
27... Ra8 {[%clk 0:00:05.4]} 28. Bxb7 {[%clk 0:00:39.2]} 28... Ra7 {[%clk
0:00:05.8]} 29. Rc8 {[%clk 0:00:39.4]} 29... Rxb7 {[%clk 0:00:03.3]} 30. Rxd8+
{[%clk 0:00:39.7]} 30... Be8 {[%clk 0:00:03.6]} 31. Rxe8+ {[%clk 0:00:40.1]}
31... Kf7 {[%clk 0:00:03.7]} 32. Rf8+ {[%clk 0:00:33.7]} 32... Ke7 {[%clk
0:00:03.6]} 33. Rg8 {[%clk 0:00:33.7]} 33... Kxd7 {[%clk 0:00:02.8]} 34. Rxg7+
{[%clk 0:00:33.8]} 34... Kc6 {[%clk 0:00:03.4]} 35. Rxb7 {[%clk 0:00:34]} 35...
Kxb7 {[%clk 0:00:04.3]} 36. g4 {[%clk 0:00:31.3]} 36... Kc6 {[%clk 0:00:04.5]}
37. h4 {[%clk 0:00:31.5]} 37... Kc5 {[%clk 0:00:05]} 38. g5 {[%clk 0:00:31.2]}
38... fxg5 {[%clk 0:00:04.9]} 39. hxg5 {[%clk 0:00:31.9]} 39... Kc4 {[%clk
0:00:05.4]} 40. f4 {[%clk 0:00:32.1]} 40... Kc3 {[%clk 0:00:04.7]} 41. f5 {[%clk
0:00:32.5]} 41... Kb2 {[%clk 0:00:04.7]} 42. Rd1 {[%clk 0:00:29.5]} 42... Nxa3
{[%clk 0:00:05]} 43. g6 {[%clk 0:00:29.4]} 43... hxg6 {[%clk 0:00:04.8]} 44.
fxg6 {[%clk 0:00:29.7]} 44... Nc2 {[%clk 0:00:05.3]} 45. g7 {[%clk 0:00:24.9]}
45... Nxe3 {[%clk 0:00:04.4]} 46. Rd2+ {[%clk 0:00:25.1]} 46... Kc3 {[%clk
0:00:04.5]} 47. Ra2 {[%clk 0:00:25]} 47... Kb3 {[%clk 0:00:04.7]} 48. Re2 {[%clk
0:00:24.5]} 1-0

[Event "Late-Titled-Tuesday-Blitz-February-06-2024"]
[Site "Chess.com"]
[Date "2024.02.06"]
[Round "3"]
[White "elchacal664"]
[Black "SocoLoco"]
[Result "1-0"]
[WhiteElo "2405"]
[BlackElo "2177"]
[TimeControl "180+1"]
[EndTime "14:29:39 PST"]
[Termination "elchacal664 won on time"]

1. e4 {[%clk 0:02:57.3]} 1... c5 {[%clk 0:02:58.2]} 2. Nf3 {[%clk 0:02:56.2]}
2... e6 {[%clk 0:02:58.2]} 3. d4 {[%clk 0:02:55.7]} 3... cxd4 {[%clk 0:02:59.1]}
4. Nxd4 {[%clk 0:02:55.9]} 4... Nf6 {[%clk 0:02:59.5]} 5. Nc3 {[%clk 0:02:52.5]}
5... Nc6 {[%clk 0:02:59.7]} 6. Nxc6 {[%clk 0:02:51.6]} 6... bxc6 {[%clk
0:03:00.6]} 7. Bd3 {[%clk 0:02:51.4]} 7... d5 {[%clk 0:02:59.9]} 8. O-O {[%clk
0:02:52.3]} 8... Be7 {[%clk 0:02:58.9]} 9. Kh1 {[%clk 0:02:49.1]} 9... O-O
{[%clk 0:02:58.4]} 10. f4 {[%clk 0:02:48.7]} 10... Rb8 {[%clk 0:02:58]} 11. b3
{[%clk 0:02:47.5]} 11... Qa5 {[%clk 0:02:55]} 12. Bb2 {[%clk 0:02:45]} 12... Bb4
{[%clk 0:02:51]} 13. Na4 {[%clk 0:02:12.5]} 13... Nxe4 {[%clk 0:02:23]} 14. Qg4
{[%clk 0:01:50.4]} 14... f6 {[%clk 0:02:05.9]} 15. a3 {[%clk 0:01:37.6]} 15...
Bd6 {[%clk 0:01:46.9]} 16. Qh5 {[%clk 0:01:23.6]} 16... Qc7 {[%clk 0:01:30.5]}
17. Bxe4 {[%clk 0:01:08.4]} 17... dxe4 {[%clk 0:01:29.4]} 18. Nc5 {[%clk
0:00:57.6]} 18... f5 {[%clk 0:01:19.9]} 19. Bd4 {[%clk 0:00:50.2]} 19... Qe7
{[%clk 0:01:10.6]} 20. b4 {[%clk 0:00:48.1]} 20... a5 {[%clk 0:01:09.6]} 21. c3
{[%clk 0:00:47.6]} 21... axb4 {[%clk 0:01:08.9]} 22. axb4 {[%clk 0:00:48.5]}
22... e5 {[%clk 0:01:00.3]} 23. fxe5 {[%clk 0:00:47.6]} 23... Bxe5 {[%clk
0:01:01.2]} 24. Rad1 {[%clk 0:00:33.6]} 24... g6 {[%clk 0:00:59.7]} 25. Qh6
{[%clk 0:00:32.7]} 25... Qg7 {[%clk 0:00:53.6]} 26. Qg5 {[%clk 0:00:30]} 26...
h6 {[%clk 0:00:51.1]} 27. Qh4 {[%clk 0:00:29.6]} 27... g5 {[%clk 0:00:51]} 28.
Qh5 {[%clk 0:00:29]} 28... Bxd4 {[%clk 0:00:45.9]} 29. Rxd4 {[%clk 0:00:28.3]}
29... Kh7 {[%clk 0:00:38.4]} 30. Rd6 {[%clk 0:00:28.2]} 30... Rf6 {[%clk
0:00:35.6]} 31. Rfd1 {[%clk 0:00:22.9]} 31... Qf7 {[%clk 0:00:30.4]} 32. Qe2
{[%clk 0:00:17.8]} 32... g4 {[%clk 0:00:22.3]} 33. h3 {[%clk 0:00:16.9]} 33...
h5 {[%clk 0:00:21.7]} 34. h4 {[%clk 0:00:16.4]} 34... Kg6 {[%clk 0:00:21.1]} 35.
Qe3 {[%clk 0:00:16]} 35... f4 {[%clk 0:00:19.3]} 36. Qxe4+ {[%clk 0:00:15.8]}
36... Bf5 {[%clk 0:00:20.1]} 37. Qxf4 {[%clk 0:00:15.8]} 37... Kg7 {[%clk
0:00:14.7]} 38. Qg5+ {[%clk 0:00:15.3]} 38... Qg6 {[%clk 0:00:14.1]} 39. Rxf6
{[%clk 0:00:11.1]} 39... Qxg5 {[%clk 0:00:05.8]} 40. hxg5 {[%clk 0:00:12]} 40...
Bc2 {[%clk 0:00:04.9]} 41. Rd2 {[%clk 0:00:11.5]} 41... Bb1 {[%clk 0:00:03.9]}
42. g3 {[%clk 0:00:11]} 42... h4 {[%clk 0:00:04.8]} 43. gxh4 {[%clk 0:00:10.8]}
43... Re8 {[%clk 0:00:04.1]} 44. Rd7+ {[%clk 0:00:10.7]} 44... Kg8 {[%clk
0:00:03.2]} 45. Re6 {[%clk 0:00:11.1]} 1-0